bitfinex-derivatives/quotes_BTCF0:USTF0_20240923
["timestamp","ask_amount","ask_price","bid_price","bid_amount"]
[1727061095636,0.077617,64422.0,64420.0,0.3608]
[1727061095845,1.5,64435.0,64421.0,0.29]
[1727061096344,0.077616,64423.0,64421.0,0.29]
[1727061096550,0.3608,64429.0,64422.0,0.3608]
[1727061096841,0.3608,64429.0,64422.0,0.65951462]
[1727061096842,0.07761,64428.0,64422.0,0.65951462]
[1727061097048,0.077614,64425.0,64422.0,0.3608]
[1727061097251,0.077614,64425.0,64424.0,0.29]
[1727061097538,0.0465,64439.0,64424.0,0.367614]
[1727061097741,0.0465,64439.0,64438.0,0.29]
[1727061097742,0.124096,64439.0,64438.0,0.29]
[1727061097944,0.724096,64439.0,64438.0,0.29]
[1727061098145,1.189656,64439.0,64438.0,0.29]
[1727061098335,1.189656,64439.0,64431.0,0.3608]
[1727061098336,1.11206,64439.0,64431.0,0.3608]
[1727061098647,0.077605,64432.0,64431.0,0.3608]
[1727061099841,0.3608,64438.0,64431.0,0.65951462]
[1727061099842,0.438398,64438.0,64431.0,0.65951462]
[1727061100247,0.008,64432.0,64431.0,0.65951462]
[1727061100742,0.013,64432.0,64431.0,0.65951462]
[1727061101544,0.008,64432.0,64431.0,0.65951462]
[1727061101842,0.011,64432.0,64431.0,0.65951462]
[1727061102435,0.008,64432.0,64431.0,0.65951462]
[1727061103138,0.007,64432.0,64431.0,0.65951462]
[1727061104148,0.007,64432.0,64431.0,0.3608]
[1727061105749,1.9726,64432.0,64431.0,0.3608]
[1727061105951,1.5565,64432.0,64429.0,0.3608]
[1727061106342,0.4656,64431.0,64429.0,0.3608]
[1727061106538,0.543206,64431.0,64429.0,0.3608]
[1727061106745,0.077613,64425.0,64423.0,0.3608]
[1727061107150,0.46568,64424.0,64423.0,0.3608]
[1727061107356,0.077615,64423.0,64416.0,0.3608]
[1727061107654,0.3608,64418.0,64408.0,0.04548182]
[1727061107859,0.3608,64411.0,64396.0,0.05989838]
[1727061108038,0.3608,64405.0,64395.0,0.65164]
[1727061108243,0.077647,64397.0,64395.0,0.6508]
[1727061108641,0.543527,64397.0,64395.0,0.6508]
[1727061109043,0.077641,64402.0,64395.0,0.6508]
[1727061109241,0.077638,64404.0,64402.0,0.29]
[1727061109450,0.077638,64404.0,64395.0,0.65951462]
[1727061109451,0.078647,64397.0,64395.0,0.65472]
[1727061109643,0.078647,64397.0,64395.0,0.6538]
[1727061110157,0.001,64397.0,64395.0,0.6538]
[1727061110460,0.001,64397.0,64395.0,1.03016362]
[1727061111147,0.003,64397.0,64395.0,0.3608]
[1727061111348,0.080648,64397.0,64395.0,0.3608]
[1727061111744,0.007,64397.0,64395.0,0.65951462]
[1727061112152,0.011,64397.0,64395.0,0.65951462]
[1727061112753,0.004,64397.0,64395.0,0.65951462]
[1727061112949,0.011,64397.0,64395.0,0.65951462]
[1727061113154,0.011,64397.0,64395.0,0.719413]
[1727061113468,0.3608,64422.0,64396.0,0.31189566]
[1727061113649,0.3608,64422.0,64406.0,0.29]
[1727061113650,0.4065,64422.0,64406.0,0.29]
[1727061114952,0.4065,64422.0,64406.0,0.58871462]
[1727061115554,0.01929348,64421.0,64406.0,0.58871462]
[1727061115750,0.4065,64422.0,64413.0,0.29]
[1727061115751,0.077625,64415.0,64413.0,0.29]
[1727061116456,0.00933015,64416.0,64413.0,0.29]
[1727061116650,0.00933015,64416.0,64413.0,0.58871462]
[1727061116850,0.00933015,64416.0,64414.0,0.077626]
[1727061116851,0.007,64416.0,64414.0,0.077626]
[1727061117162,0.045,64435.0,64414.0,0.77505023]
[1727061117163,0.077603,64434.0,64414.0,0.77505023]
[1727061117361,0.077617,64422.0,64421.0,0.06045882]
[1727061117662,0.07762,64419.0,64418.0,0.3608]
[1727061118054,1.14334,64419.0,64418.0,0.3608]
[1727061118361,0.54334,64419.0,64418.0,0.3608]
[1727061118657,1.14334,64419.0,64418.0,0.3608]
[1727061118857,0.0481,64428.0,64418.0,0.3608]
[1727061119056,0.009,64419.0,64418.0,0.73813562]
[1727061119358,0.009,64419.0,64418.0,1.02131462]
[1727061119551,0.009,64419.0,64418.0,0.7216]
[1727061119552,0.07762,64419.0,64418.0,0.7216]
[1727061119756,0.08762,64419.0,64418.0,0.7226]
[1727061120053,0.077653,64392.0,64391.0,0.07564958]
[1727061120249,0.077653,64392.0,64377.0,0.3608]
[1727061120250,0.077655,64391.0,64377.0,0.3608]
[1727061120445,0.3608,64381.0,64377.0,0.29871462]
[1727061120652,0.3608,64378.0,64364.0,0.3369]
[1727061120846,0.3608,64378.0,64371.0,0.29]
[1727061121053,0.3608,64378.0,64369.0,0.09368397]
[1727061121054,0.3608,64386.0,64377.0,0.36767]
[1727061121462,0.3608,64386.0,64378.0,0.23256736]
[1727061121649,0.3608,64386.0,64378.0,0.31023636]
[1727061121958,0.3608,64395.0,64384.0,0.077662]
[1727061122357,0.001,64392.0,64391.0,0.014]
[1727061122554,0.0008,64408.0,64406.0,0.077635]
[1727061122755,0.3608,64424.0,64407.0,0.7558]
[1727061123055,0.3608,64424.0,64421.0,0.29]
[1727061123454,0.3608,64424.0,64422.0,0.23264528]
[1727061123655,0.3608,64424.0,64414.0,0.6516]
[1727061123855,0.3608,64424.0,64414.0,0.65951462]
[1727061124150,0.3608,64424.0,64415.0,0.23238582]
[1727061124461,0.3608,64417.0,64408.0,0.36168]
[1727061124760,0.29,64425.0,64402.0,0.3608]
[1727061124761,0.3608,64410.0,64402.0,0.3608]
[1727061124958,0.4658,64409.0,64392.0,0.0008]
[1727061125159,0.438452,64393.0,64384.0,0.006]
[1727061125368,0.438452,64393.0,64378.0,0.36312889]
[1727061125369,0.3608,64387.0,64378.0,0.36312889]
[1727061125554,0.3608,64387.0,64378.0,0.30104351]
[1727061125748,0.3608,64387.0,64381.0,0.23422446]
[1727061125947,0.3608,64387.0,64379.0,0.23422446]
[1727061126251,0.3608,64380.0,64378.0,0.00232889]
[1727061126457,0.438468,64380.0,64378.0,0.00232889]
[1727061126652,0.3618,64387.0,64378.0,0.00232889]
[1727061127252,0.3618,64387.0,64379.0,0.014]
[1727061127253,0.3628,64387.0,64379.0,0.014]
[1727061127766,0.077663,64384.0,64379.0,0.014]
[1727061128062,0.077666,64381.0,64375.0,0.3608]
[1727061128361,0.077662,64385.0,64378.0,0.006]
[1727061128755,0.3628,64387.0,64378.0,0.30471462]
[1727061128951,0.3628,64387.0,64369.0,0.3608]
[1727061128952,0.3608,64379.0,64348.0,0.3608]
[1727061129251,0.3608,64358.0,64355.0,0.29871462]
[1727061129456,0.438487,64364.0,64356.0,0.23163439]
[1727061129656,0.438487,64364.0,64356.0,0.29871462]
[1727061130067,0.3608,64364.0,64356.0,0.29871462]
[1727061130765,0.3608,64357.0,64356.0,0.007]
[1727061130959,0.077692,64360.0,64356.0,0.007]
[1727061131263,0.3608,64357.0,64339.0,0.077716]
[1727061131464,0.3608,64348.0,64339.0,0.29871462]
[1727061131669,0.3608,64357.0,64340.0,0.23416621]
[1727061131966,0.3608,64357.0,64347.0,0.29]
[1727061132166,0.077699,64354.0,64342.0,0.3608]
[1727061132368,0.3608,64348.0,64342.0,0.65951462]
[1727061132564,0.3618,64348.0,64343.0,0.23279138]
[1727061132760,0.001,64348.0,64343.0,0.23279138]
[1727061132961,0.077711,64344.0,64342.0,0.00088]
[1727061133168,0.46624,64347.0,64329.0,0.438529]
[1727061133169,0.46704,64347.0,64335.0,0.3608]
[1727061133464,0.00192,64348.0,64336.0,0.23294796]
[1727061133668,0.001,64348.0,64336.0,0.23294796]
[1727061133861,0.3608,64340.0,64329.0,0.3608]
[1727061134164,0.07772,64337.0,64332.0,0.23314735]
[1727061134374,0.3608,64340.0,64332.0,0.53186197]
[1727061134557,0.001,64348.0,64336.0,0.002]
[1727061134959,0.001,64348.0,64336.0,0.30071462]
[1727061135273,0.077717,64339.0,64336.0,0.002]
[1727061135771,0.077719,64338.0,64336.0,0.002]
[1727061136067,0.077719,64338.0,64323.0,0.077735]
[1727061136068,0.3608,64337.0,64328.0,0.29]
[1727061136268,0.3608,64337.0,64334.0,0.29]
[1727061136466,0.31414228,64337.0,64334.0,0.29]
[1727061136663,0.31414228,64337.0,64334.0,0.29871462]
[1727061136862,0.31414228,64337.0,64332.0,0.001]
[1727061136863,0.07772,64337.0,64332.0,0.001]
[1727061137062,0.077723,64334.0,64332.0,0.001]
[1727061137284,0.077723,64334.0,64325.0,0.3608]
[1727061137285,0.077726,64332.0,64328.0,0.001]
[1727061137466,0.001,64337.0,64328.0,0.001]
[1727061137657,0.077724,64333.0,64328.0,0.29971462]
[1727061138165,0.077724,64333.0,64328.0,0.001]
[1727061138671,0.002,64337.0,64328.0,0.001]
[1727061139063,0.001,64333.0,64328.0,0.001]
[1727061139365,0.001,64333.0,64325.0,0.3608]
[1727061139561,0.001,64337.0,64325.0,0.65951462]
[1727061139760,0.3608,64334.0,64325.0,0.65951462]
[1727061140167,0.3608,64318.0,64293.0,0.11367351]
[1727061140460,0.3608,64318.0,64275.0,0.20598587]
[1727061140461,1.0116,64294.0,64275.0,0.3278188]
[1727061140662,0.30632691,64294.0,64282.0,0.03890858]
[1727061140875,0.3608,64305.0,64283.0,0.7423]
[1727061141069,0.3608,64312.0,64297.0,0.438566]
[1727061141269,0.3608,64312.0,64298.0,0.336]
[1727061141571,0.36313365,64323.0,64310.0,0.077751]
[1727061141777,0.3608,64323.0,64311.0,0.0454]
[1727061141961,0.077738,64322.0,64311.0,0.5617626]
[1727061142163,0.077738,64322.0,64304.0,0.27818798]
[1727061142362,0.077738,64322.0,64304.0,0.28427462]
[1727061142363,0.3608,64311.0,64304.0,0.28427462]
[1727061142770,0.077753,64309.0,64304.0,0.28427462]
[1727061143473,0.077753,64309.0,64288.0,0.3608]
[1727061143678,0.3608,64297.0,64288.0,0.64507462]
[1727061143980,0.077769,64296.0,64289.0,0.23325328]
[1727061144274,0.077777,64289.0,64288.0,0.0008]
[1727061144464,0.077779,64288.0,64265.0,0.3608]
[1727061144663,0.07778,64287.0,64266.0,0.0656]
[1727061144875,0.077782,64286.0,64266.0,0.0656]
[1727061145172,0.6516,64290.0,64266.0,0.0656]
[1727061145173,0.077786,64282.0,64266.0,0.0656]
[1727061145381,0.0077751,64301.0,64266.0,0.34987462]
[1727061145382,0.29,64270.0,64266.0,0.34987462]
[1727061145567,0.29,64270.0,64259.0,0.07]
[1727061145766,0.29,64270.0,64259.0,0.35427462]
[1727061145964,0.077807,64265.0,64259.0,0.35427462]
[1727061146173,0.439388,64280.0,64250.0,0.0656]
[1727061146174,0.3608,64260.0,64250.0,0.0656]
[1727061146470,0.3608,64266.0,64254.0,0.077819]
[1727061146879,0.3608,64266.0,64254.0,0.36209362]
[1727061147174,0.001,64265.0,64254.0,0.28427462]
[1727061147380,0.29,64263.0,64254.0,0.28427462]
[1727061148081,0.29,64263.0,64243.0,0.3608]
[1727061148082,0.07783,64246.0,64234.0,0.3608]
[1727061148374,0.3608,64244.0,64236.0,0.23439819]
[1727061148571,0.3608,64255.0,64237.0,0.0666]
[1727061148773,0.00233639,64257.0,64245.0,0.3608]
[1727061148973,0.00233639,64257.0,64248.0,0.077826]
[1727061149172,0.00233639,64257.0,64249.0,0.1363]
[1727061149367,0.3608,64261.0,64249.0,0.1363]
[1727061149567,0.3608,64261.0,64249.0,0.65542155]
[1727061149768,0.001,64255.0,64249.0,0.65542155]
[1727061150080,0.001,64255.0,64249.0,0.35467462]
[1727061150379,0.001,64255.0,64249.0,0.28427462]
[1727061150572,0.3608,64253.0,64249.0,0.28427462]
[1727061150775,0.28294547,64253.0,64249.0,0.28427462]
[1727061151376,0.3608,64261.0,64249.0,0.28427462]
[1727061151567,0.001,64257.0,64249.0,0.28427462]
[1727061152266,0.077824,64251.0,64249.0,0.28427462]
[1727061152469,0.001,64253.0,64249.0,0.28427462]
[1727061152470,0.077824,64250.0,64249.0,0.28427462]
[1727061152671,0.3618,64253.0,64239.0,0.0704]
[1727061152872,0.3608,64245.0,64239.0,0.35467462]
[1727061153275,0.29,64243.0,64232.0,0.0708]
[1727061153482,0.29,64243.0,64232.0,0.28427462]
[1727061153483,0.3608,64236.0,64232.0,0.28427462]
[1727061153777,0.3608,64245.0,64232.0,0.28427462]
[1727061154183,0.3608,64234.0,64232.0,0.28427462]
[1727061154369,0.077838,64239.0,64232.0,0.28427462]
[1727061154682,0.3608,64245.0,64232.0,0.28427462]
[1727061154683,0.077841,64237.0,64232.0,0.28427462]
[1727061155279,0.3608,64245.0,64232.0,0.28427462]
[1727061155494,0.3608,64245.0,64237.0,0.07784]
[1727061155495,0.3608,64239.0,64237.0,0.07784]
[1727061155786,0.3608,64239.0,64232.0,0.28427462]
[1727061155787,0.3608,64253.0,64233.0,0.23444813]
[1727061155971,0.3608,64253.0,64234.0,0.077843]
[1727061155972,0.077828,64248.0,64234.0,0.077843]
[1727061156167,0.001,64234.0,64233.0,0.31250203]
[1727061156372,0.001,64245.0,64233.0,0.46704]
[1727061156572,0.077824,64251.0,64235.0,0.3608]
[1727061156976,0.077825,64250.0,64235.0,0.28427462]
[1727061157180,0.3618,64253.0,64235.0,0.28427462]
[1727061157181,0.3618,64253.0,64247.0,0.077828]
[1727061157383,0.077824,64251.0,64239.0,0.29]
[1727061157572,0.3618,64253.0,64239.0,0.57427462]
[1727061157573,0.3608,64253.0,64239.0,0.57427462]
[1727061157871,0.001,64251.0,64240.0,0.23382705]
[1727061158285,0.001,64251.0,64246.0,0.077829]
[1727061158484,0.077825,64250.0,64246.0,0.077829]
[1727061158682,0.077825,64250.0,64240.0,0.00092]
[1727061158871,0.077829,64247.0,64240.0,0.28427462]
[1727061159078,0.077835,64241.0,64240.0,0.28427462]
[1727061159275,0.077835,64241.0,64231.0,0.3608]
[1727061159276,0.3608,64243.0,64239.0,0.001]
[1727061159682,0.077837,64240.0,64239.0,0.001]
[1727061159883,0.077837,64240.0,64217.0,0.3608]
[1727061159884,0.077858,64222.0,64217.0,0.3608]
[1727061160193,0.077858,64222.0,64215.0,0.077866]
[1727061160482,0.3608,64227.0,64214.0,0.1351]
[1727061160782,0.3608,64227.0,64218.0,0.077863]
[1727061160783,0.077854,64226.0,64218.0,0.077863]
[1727061161094,0.001,64222.0,64217.0,0.002]
[1727061161380,0.002,64222.0,64217.0,0.28627462]
[1727061161583,0.002,64222.0,64217.0,0.002]
[1727061161980,0.077863,64219.0,64217.0,0.28627462]
[1727061162187,0.002,64222.0,64219.0,0.077862]
[1727061162382,0.002,64222.0,64219.0,0.28427462]
[1727061162586,0.002,64222.0,64221.0,0.07786]
[1727061162781,0.001,64222.0,64221.0,0.28427462]
[1727061162986,0.001,64222.0,64217.0,0.002]
[1727061163283,0.001,64226.0,64215.0,0.0008]
[1727061163284,0.3608,64218.0,64215.0,0.0008]
[1727061163475,0.3608,64218.0,64215.0,0.28427462]
[1727061163677,0.0078,64249.0,64218.0,0.077863]
[1727061163878,0.3608,64256.0,64241.0,0.077834]
[1727061163879,0.3608,64250.0,64241.0,0.077834]
[1727061164080,0.3608,64250.0,64241.0,0.28327462]
[1727061164288,0.3608,64250.0,64245.0,0.07783]
[1727061164489,0.3608,64250.0,64239.0,0.3608]
[1727061164785,0.3608,64250.0,64243.0,0.077833]
[1727061164971,0.3608,64250.0,64239.0,0.28327462]
[1727061165173,0.077832,64244.0,64239.0,0.28327462]
[1727061166679,0.3608,64250.0,64239.0,0.36111162]
[1727061166878,0.077827,64249.0,64239.0,0.36111162]
[1727061167090,0.004,64244.0,64239.0,0.28327462]
[1727061167279,0.006,64244.0,64239.0,0.28327462]
[1727061167681,0.002,64244.0,64242.0,0.077834]
[1727061167885,0.002,64244.0,64242.0,0.367834]
[1727061168097,0.004,64250.0,64248.0,0.077827]
[1727061168483,0.004,64250.0,64248.0,0.36110162]
[1727061169183,0.077833,64244.0,64241.0,0.3608]
[1727061169385,0.080833,64244.0,64241.0,0.3608]
[1727061169586,0.080833,64244.0,64241.0,0.64407462]
[1727061169893,0.001,64244.0,64241.0,0.64407462]
[1727061170284,0.078833,64244.0,64241.0,0.64407462]
[1727061170485,0.077833,64244.0,64241.0,0.64407462]
[1727061170688,0.007,64244.0,64241.0,0.64407462]
[1727061172084,0.007,64244.0,64242.0,0.09573922]
[1727061172390,0.007,64244.0,64243.0,0.09573922]
[1727061172584,0.006,64244.0,64243.0,0.17357222]
[1727061172785,0.006,64244.0,64243.0,0.54722522]
[1727061172988,0.004,64244.0,64243.0,0.45684684]
[1727061173288,0.00233615,64258.0,64243.0,1.92098216]
[1727061173289,0.077816,64257.0,64243.0,1.92098216]
[1727061173489,0.09708189,64269.0,64255.0,0.077818]
[1727061173695,0.29,64272.0,64257.0,0.07613315]
[1727061173890,0.07781,64262.0,64259.0,0.3608]
[1727061174194,0.07781,64262.0,64260.0,0.18685008]
[1727061174379,0.07781,64262.0,64261.0,0.0954903]
[1727061174888,0.07781,64262.0,64261.0,0.30094892]
[1727061175089,0.29,64272.0,64261.0,0.3923087]
[1727061175300,0.077803,64269.0,64264.0,0.16916678]
[1727061175592,0.077791,64278.0,64266.0,0.077805]
[1727061175888,0.077797,64273.0,64270.0,0.09149638]
[1727061176096,0.0008,64285.0,64272.0,0.3608]
[1727061176277,0.00092,64285.0,64281.0,0.0761903]
[1727061176485,0.31410927,64294.0,64282.0,0.0954903]
[1727061176689,0.077776,64290.0,64289.0,0.07615747]
[1727061176888,0.077776,64290.0,64289.0,0.09481274]
[1727061177096,0.077776,64290.0,64287.0,0.07609453]
[1727061177300,0.077776,64290.0,64288.0,0.07609453]
[1727061177589,0.077778,64289.0,64287.0,0.07609453]
[1727061177794,0.077779,64288.0,64286.0,0.07609453]
[1727061177986,0.077781,64286.0,64285.0,0.07609453]
[1727061178191,0.077783,64285.0,64283.0,0.07604486]
[1727061178384,0.088783,64285.0,64283.0,0.07604486]
[1727061178585,0.088783,64285.0,64278.0,0.09138897]
[1727061178586,0.088783,64285.0,64282.0,0.07604486]
[1727061178894,0.077783,64284.0,64281.0,0.07604486]
[1727061179090,0.077783,64284.0,64265.0,0.16919497]
[1727061179091,0.6508,64282.0,64265.0,0.16919497]
[1727061179292,0.077798,64272.0,64266.0,0.09484518]
[1727061179595,0.077798,64272.0,64267.0,0.09484518]
[1727061179898,0.3608,64276.0,64265.0,0.077806]
[1727061180096,0.077794,64275.0,64270.0,0.06085784]
[1727061180392,0.077789,64280.0,64271.0,0.06085784]
[1727061180593,0.65372,64282.0,64271.0,0.06085784]
[1727061180594,0.3636,64282.0,64271.0,0.06085784]
[1727061180787,0.38202786,64282.0,64272.0,0.06085784]
[1727061180985,0.38102786,64282.0,64273.0,0.06085784]
[1727061181183,0.078793,64276.0,64274.0,0.06085784]
[1727061181386,0.001,64276.0,64271.0,0.20545862]
[1727061181783,0.001,64276.0,64275.0,0.077794]
[1727061182003,0.001,64276.0,64275.0,0.28325262]
[1727061182193,0.002,64276.0,64275.0,0.28325262]
[1727061182391,0.002,64276.0,64275.0,1.35001262]
[1727061182790,0.002,64276.0,64275.0,1.27221862]
[1727061182791,0.006,64276.0,64275.0,1.27221862]
[1727061182991,1.79,64301.0,64275.0,1.27221862]
[1727061182992,0.077775,64291.0,64287.0,0.077779]
[1727061183389,0.077767,64298.0,64289.0,0.3608]
[1727061183584,0.07776,64304.0,64295.0,0.3608]
[1727061183784,0.07776,64304.0,64301.0,0.3608]
[1727061184003,0.6508,64320.0,64301.0,0.3608]
[1727061184185,0.29,64320.0,64301.0,0.56225862]
[1727061184398,0.4336,64322.0,64307.0,0.077755]
[1727061184591,0.077745,64316.0,64307.0,0.27921362]
[1727061184899,0.077747,64314.0,64307.0,0.27921362]
[1727061186088,0.084747,64314.0,64307.0,0.28021362]
[1727061186602,0.007,64314.0,64312.0,0.077749]
[1727061186800,0.008,64314.0,64312.0,0.077749]
[1727061187099,0.077727,64331.0,64313.0,0.82728]
[1727061187302,0.077732,64327.0,64321.0,0.3608]
[1727061187801,0.077732,64327.0,64321.0,0.56225862]
[1727061188392,0.3608,64333.0,64321.0,0.56225862]
[1727061188593,0.077729,64329.0,64321.0,0.56225862]
[1727061188895,0.3608,64333.0,64321.0,0.56225862]
[1727061189199,0.077732,64327.0,64321.0,0.56225862]
[1727061189395,0.077732,64327.0,64321.0,0.3618]
[1727061189396,0.077737,64322.0,64321.0,0.3618]
[1727061189598,0.077737,64322.0,64312.0,0.001]
[1727061189599,0.077735,64324.0,64312.0,0.001]
[1727061189905,0.07775,64312.0,64304.0,0.3608]
[1727061190103,0.07775,64312.0,64304.0,0.56225862]
[1727061190290,0.29,64318.0,64304.0,0.64001762]
[1727061190489,0.3608,64321.0,64304.0,0.64001762]
[1727061190894,0.3608,64321.0,64304.0,0.56225862]
[1727061191096,0.077751,64311.0,64304.0,0.56225862]
[1727061191303,0.077757,64306.0,64304.0,0.56225862]
[1727061191694,0.077757,64306.0,64304.0,0.3608]
[1727061192200,0.077758,64306.0,64304.0,0.3608]
[1727061192502,0.004,64306.0,64304.0,0.64001762]
[1727061193001,0.077741,64319.0,64309.0,0.077752]
[1727061193196,0.077741,64319.0,64304.0,0.56325862]
[1727061193197,0.3628,64321.0,64304.0,0.85413862]
[1727061193391,0.3628,64321.0,64305.0,0.0736]
[1727061193392,0.3608,64321.0,64305.0,0.0736]
[1727061193590,0.011,64306.0,64305.0,0.151358]
[1727061193797,0.3608,64321.0,64306.0,0.077756]
[1727061193990,0.077747,64314.0,64306.0,0.077756]
[1727061194200,0.077747,64314.0,64306.0,0.27921462]
[1727061194497,0.29,64324.0,64306.0,0.27921462]
[1727061194498,0.29,64324.0,64307.0,0.077755]
[1727061194702,0.29,64324.0,64306.0,0.20145862]
[1727061195204,0.077748,64314.0,64306.0,0.20145862]
[1727061195403,0.29,64318.0,64306.0,0.20145862]
[1727061195792,0.3608,64314.0,64306.0,0.20145862]
[1727061195992,0.077743,64318.0,64306.0,0.20145862]
[1727061196493,0.3608,64325.0,64317.0,0.077743]
[1727061196494,0.438534,64325.0,64317.0,0.077743]
[1727061196699,0.3608,64325.0,64317.0,0.20145862]
[1727061196894,0.3608,64325.0,64320.0,0.07774]
[1727061197097,0.7564,64324.0,64317.0,0.00084]
[1727061197298,0.077744,64317.0,64310.0,0.3608]
[1727061197497,0.077747,64314.0,64310.0,0.56225862]
[1727061197803,0.29,64324.0,64310.0,0.56225862]
[1727061197997,0.077748,64313.0,64310.0,0.56225862]
[1727061198307,0.077751,64311.0,64310.0,0.56225862]
[1727061198509,0.367751,64311.0,64306.0,0.001]
[1727061198805,0.367751,64311.0,64302.0,0.3608]
[1727061198806,0.077757,64306.0,64302.0,0.36172]
[1727061199014,0.07775,64312.0,64304.0,0.077758]
[1727061199303,0.07775,64312.0,64310.0,0.001]
[1727061199602,0.009,64313.0,64310.0,0.001]
[1727061199810,0.009,64313.0,64307.0,0.077755]
[1727061199811,0.007,64311.0,64307.0,0.077755]
[1727061200001,0.007,64311.0,64307.0,0.20145862]
[1727061200202,0.007,64311.0,64310.0,0.077752]
[1727061200507,0.011,64312.0,64311.0,0.07775]
[1727061200911,0.018,64312.0,64311.0,0.27920862]
[1727061202201,0.007,64312.0,64311.0,0.64000862]
[1727061202504,0.29,64324.0,64311.0,0.64000862]
[1727061202697,0.02,64312.0,64311.0,0.64200862]
[1727061203607,0.012,64312.0,64311.0,0.64200862]
[1727061203809,0.077749,64312.0,64311.0,0.56525862]
[1727061204299,0.077739,64321.0,64311.0,0.56525862]
[1727061204609,0.077742,64318.0,64313.0,0.077747]
[1727061204904,0.077742,64318.0,64313.0,0.27920562]
[1727061205615,0.077742,64318.0,64313.0,0.64000562]
[1727061206302,0.267737,64323.0,64314.0,0.077747]
[1727061206513,0.077737,64323.0,64314.0,0.20145862]
[1727061206701,0.43863325,64332.0,64314.0,0.20145862]
[1727061207009,0.077739,64321.0,64316.0,0.077744]
[1727061207207,0.0186643,64331.0,64317.0,0.077743]
[1727061207208,0.001,64318.0,64317.0,0.077743]
[1727061207511,0.002,64318.0,64317.0,0.077743]
[1727061207809,0.002,64318.0,64317.0,0.27920162]
[1727061209017,0.006,64323.0,64317.0,0.27920162]
[1727061209018,0.006,64323.0,64322.0,0.077737]
[1727061209316,0.077724,64334.0,64322.0,0.19]
[1727061209608,0.3608,64338.0,64335.0,0.077721]
[1727061209609,0.077719,64337.0,64335.0,0.077721]
[1727061209825,0.3608,64338.0,64328.0,0.3608]
[1727061210008,0.3608,64338.0,64328.0,0.56225862]
[1727061210209,0.3608,64338.0,64337.0,0.077719]
[1727061210415,0.077722,64335.0,64332.0,0.077724]
[1727061210711,0.077722,64335.0,64328.0,0.56225862]
[1727061210712,0.014,64334.0,64328.0,0.56225862]
[1727061210907,0.077727,64331.0,64329.0,0.077729]
[1727061211305,0.077727,64331.0,64329.0,0.27918762]
[1727061211906,0.077728,64330.0,64329.0,0.20145862]
[1727061212121,0.077728,64330.0,64327.0,0.06082779]
[1727061212307,0.009,64334.0,64333.0,0.077724]
[1727061212616,0.009,64334.0,64333.0,0.13854532]
[1727061212811,0.01,64338.0,64333.0,0.077724]
[1727061213013,0.01,64338.0,64334.0,0.06081035]
[1727061213321,0.19,64347.0,64338.0,0.077717]
[1727061213509,0.19,64347.0,64339.0,0.0608209]
[1727061213818,0.4394,64348.0,64340.0,0.1385349]
[1727061214008,0.077711,64344.0,64341.0,0.077714]
[1727061214316,0.4394,64348.0,64342.0,0.3608]
[1727061214524,0.3608,64348.0,64342.0,0.3608]
[1727061214717,0.3608,64348.0,64342.0,0.4216209]
[1727061214921,0.077708,64346.0,64343.0,0.0608209]
[1727061215124,0.07271,64345.0,64342.0,0.3608]
[1727061215415,0.006,64347.0,64342.0,0.4993339]
[1727061215619,0.006,64347.0,64343.0,0.0608209]
[1727061215808,0.006,64347.0,64346.0,0.077708]
[1727061215809,0.011,64347.0,64346.0,0.077708]
[1727061216010,0.011,64347.0,64346.0,0.52998752]
[1727061216210,0.00092,64359.0,64358.0,0.077694]
[1727061216512,0.438484,64366.0,64358.0,0.077694]
[1727061216513,0.077684,64366.0,64359.0,0.077692]
[1727061216718,0.55159244,64372.0,64360.0,0.06068876]
[1727061216928,0.55159244,64372.0,64359.0,0.20145862]
[1727061216929,0.19,64367.0,64359.0,0.20145862]
[1727061217608,0.07769,64362.0,64358.0,0.3608]
[1727061217809,0.07769,64362.0,64353.0,0.3608]
[1727061217810,0.267691,64361.0,64359.0,0.001]
[1727061218017,0.005,64366.0,64360.0,0.3608]
[1727061218018,0.195,64366.0,64360.0,0.3608]
[1727061218223,0.155398,64354.0,64353.0,0.3608]
[1727061218422,0.077699,64354.0,64353.0,0.3608]
[1727061218617,0.077699,64354.0,64346.0,0.001]
[1727061218618,0.19002933,64354.0,64346.0,0.001]
[1727061218825,0.43479982,64358.0,64341.0,0.3608]
[1727061218826,0.3608,64350.0,64342.0,0.077713]
[1727061219119,0.3608,64350.0,64342.0,0.20145862]
[1727061219120,0.19002933,64349.0,64342.0,0.20145862]
[1727061219329,0.07771,64345.0,64342.0,0.20145862]
[1727061219617,0.07771,64345.0,64327.0,0.0813]
[1727061219618,0.24747828,64343.0,64332.0,0.077725]
[1727061219835,0.16976628,64336.0,64332.0,0.27918362]
[1727061220028,0.35979561,64335.0,64332.0,0.27918362]
[1727061220210,0.19002933,64334.0,64332.0,0.27918362]
[1727061220410,0.12746173,64333.0,64332.0,0.27918362]
[1727061220631,0.18536619,64333.0,64332.0,0.20145862]
[1727061221017,0.22687431,64333.0,64332.0,0.20145862]
[1727061221315,0.33972488,64333.0,64332.0,0.20145862]
[1727061221626,0.18536619,64333.0,64332.0,0.20145862]
[1727061221815,0.18536619,64333.0,64332.0,0.39145862]
[1727061222015,0.18536619,64333.0,64332.0,0.85777862]
[1727061222616,0.13894657,64335.0,64333.0,0.077724]
[1727061222818,0.06846298,64351.0,64338.0,0.077718]
[1727061222819,0.16976628,64341.0,64338.0,0.077718]
[1727061223017,0.16976628,64342.0,64341.0,0.077714]
[1727061223326,0.16976628,64342.0,64334.0,0.5516]
[1727061223327,0.05853037,64342.0,64335.0,0.077721]